[Event "Early-Titled-Tuesday-Blitz-February-20-2024"]
[Site "Chess.com"]
[Date "2024.02.20"]
[Round "7"]
[White "noblerone"]
[Black "InitiatingASC"]
[Result "1/2-1/2"]
[WhiteElo "2527"]
[BlackElo "2399"]
[TimeControl "180+1"]
[EndTime "9:19:35 PST"]
[Termination "Game drawn by stalemate"]

1. d4 {[%clk 0:03:00.9]} 1... d5 {[%clk 0:02:53.8]} 2. c4 {[%clk 0:03:01.8]}
2... e6 {[%clk 0:02:53.6]} 3. Nc3 {[%clk 0:03:02]} 3... c5 {[%clk 0:02:53.7]} 4.
cxd5 {[%clk 0:02:54.3]} 4... exd5 {[%clk 0:02:54.6]} 5. Nf3 {[%clk 0:02:36.4]}
5... Nc6 {[%clk 0:02:54.2]} 6. dxc5 {[%clk 0:02:12.4]} 6... d4 {[%clk
0:02:50.7]} 7. Na4 {[%clk 0:02:09.4]} 7... Bxc5 {[%clk 0:02:51.6]} 8. Nxc5
{[%clk 0:02:06.5]} 8... Qa5+ {[%clk 0:02:52.3]} 9. Bd2 {[%clk 0:02:06.8]} 9...
Qxc5 {[%clk 0:02:53.2]} 10. g3 {[%clk 0:02:06.3]} 10... Nf6 {[%clk 0:02:45.3]}
11. Bg2 {[%clk 0:02:06]} 11... O-O {[%clk 0:02:45.2]} 12. O-O {[%clk 0:02:06]}
12... Qh5 {[%clk 0:02:44.4]} 13. Re1 {[%clk 0:01:49.3]} 13... Bh3 {[%clk
0:02:38.8]} 14. Bf4 {[%clk 0:01:42.3]} 14... Bxg2 {[%clk 0:02:34.2]} 15. Kxg2
{[%clk 0:01:43.2]} 15... Rad8 {[%clk 0:02:33.7]} 16. Rc1 {[%clk 0:01:27.2]}
16... Nd5 {[%clk 0:02:08.4]} 17. Qd2 {[%clk 0:01:17.9]} 17... h6 {[%clk
0:01:51.6]} 18. h4 {[%clk 0:01:15.1]} 18... Qg4 {[%clk 0:01:44.5]} 19. a3 {[%clk
0:00:58.6]} 19... Nxf4+ {[%clk 0:01:43]} 20. Qxf4 {[%clk 0:00:59.5]} 20... Qxf4
{[%clk 0:01:43.4]} 21. gxf4 {[%clk 0:01:00.4]} 21... d3 {[%clk 0:01:44.1]} 22.
exd3 {[%clk 0:00:57.4]} 22... Rxd3 {[%clk 0:01:43.4]} 23. Ne5 {[%clk 0:00:50.7]}
23... Nxe5 {[%clk 0:01:34.8]} 24. fxe5 {[%clk 0:00:44]} 24... Rd2 {[%clk
0:01:33.2]} 25. b4 {[%clk 0:00:40.6]} 25... Rfd8 {[%clk 0:01:25.6]} 26. Rc7
{[%clk 0:00:39.6]} 26... R8d7 {[%clk 0:01:26.1]} 27. Rec1 {[%clk 0:00:39.6]}
27... Kh7 {[%clk 0:01:22.8]} 28. h5 {[%clk 0:00:35.5]} 28... R2d5 {[%clk
0:01:10.7]} 29. Rxd7 {[%clk 0:00:32.4]} 29... Rxd7 {[%clk 0:01:10.4]} 30. f4
{[%clk 0:00:32.9]} 30... Rd2+ {[%clk 0:01:08.6]} 31. Kg3 {[%clk 0:00:32.4]}
31... Rd3+ {[%clk 0:01:08.8]} 32. Kg4 {[%clk 0:00:32.8]} 32... Rxa3 {[%clk
0:01:06.9]} 33. Rc7 {[%clk 0:00:32.4]} 33... b5 {[%clk 0:00:59.1]} 34. Rxf7
{[%clk 0:00:31.1]} 34... a5 {[%clk 0:00:57.7]} 35. bxa5 {[%clk 0:00:30]} 35...
Rxa5 {[%clk 0:00:58.4]} 36. Rb7 {[%clk 0:00:30.4]} 36... Kg8 {[%clk 0:00:56.9]}
37. Kf5 {[%clk 0:00:30.3]} 37... Kf8 {[%clk 0:00:56.1]} 38. Kg6 {[%clk
0:00:20.7]} 38... Ra6+ {[%clk 0:00:53.1]} 39. Kh7 {[%clk 0:00:20.8]} 39... Ra4
{[%clk 0:00:53.3]} 40. f5 {[%clk 0:00:20.4]} 40... Rf4 {[%clk 0:00:51.8]} 41.
Rb8+ {[%clk 0:00:18.2]} 41... Kf7 {[%clk 0:00:51.7]} 42. e6+ {[%clk 0:00:17]}
42... Ke7 {[%clk 0:00:48]} 43. Rxb5 {[%clk 0:00:16.8]} 43... Kf6 {[%clk
0:00:45.8]} 44. Rb7 {[%clk 0:00:15.4]} 44... Rxf5 {[%clk 0:00:44.4]} 45. Rf7+
{[%clk 0:00:06.4]} 45... Kxe6 {[%clk 0:00:44.5]} 46. Rxf5 {[%clk 0:00:06.9]}
46... Kxf5 {[%clk 0:00:45.4]} 47. Kxg7 {[%clk 0:00:06.8]} 47... Ke6 {[%clk
0:00:46]} 48. Kxh6 {[%clk 0:00:05.5]} 48... Kf6 {[%clk 0:00:43.9]} 49. Kh7
{[%clk 0:00:05.4]} 49... Kf7 {[%clk 0:00:44.2]} 50. h6 {[%clk 0:00:06.3]} 50...
Kf8 {[%clk 0:00:43.7]} 51. Kg6 {[%clk 0:00:05.7]} 51... Kg8 {[%clk 0:00:44]} 52.
h7+ {[%clk 0:00:06.6]} 52... Kh8 {[%clk 0:00:44.7]} 53. Kh6 {[%clk 0:00:07.1]}
1/2-1/2

[Event "Early-Titled-Tuesday-Blitz-February-20-2024"]
[Site "Chess.com"]
[Date "2024.02.20"]
[Round "7"]
[White "annamaja"]
[Black "Viacheslav92"]
[Result "0-1"]
[WhiteElo "2396"]
[BlackElo "2551"]
[TimeControl "180+1"]
[EndTime "9:19:37 PST"]
[Termination "Viacheslav92 won on time"]

1. e4 {[%clk 0:03:00.9]} 1... e5 {[%clk 0:02:56]} 2. Nf3 {[%clk 0:03:00.6]} 2...
Nc6 {[%clk 0:02:55.4]} 3. Bb5 {[%clk 0:03:00.3]} 3... a6 {[%clk 0:02:55.5]} 4.
Ba4 {[%clk 0:03:00.3]} 4... Nf6 {[%clk 0:02:55.1]} 5. d3 {[%clk 0:03:00.6]} 5...
b5 {[%clk 0:02:54.1]} 6. Bb3 {[%clk 0:02:59]} 6... Bc5 {[%clk 0:02:52.1]} 7. O-O
{[%clk 0:02:58.7]} 7... d6 {[%clk 0:02:49]} 8. c3 {[%clk 0:02:58.8]} 8... O-O
{[%clk 0:02:47.8]} 9. a4 {[%clk 0:02:55.6]} 9... Rb8 {[%clk 0:02:47.5]} 10. h3
{[%clk 0:02:51.4]} 10... Bb6 {[%clk 0:02:44.2]} 11. Be3 {[%clk 0:02:50.6]} 11...
Nh5 {[%clk 0:02:42.5]} 12. Bxb6 {[%clk 0:02:37.3]} 12... Rxb6 {[%clk 0:02:43.4]}
13. axb5 {[%clk 0:02:08.6]} 13... axb5 {[%clk 0:02:41.6]} 14. Nxe5 {[%clk
0:01:56.4]} 14... Nxe5 {[%clk 0:02:26]} 15. Qxh5 {[%clk 0:01:54.9]} 15... Nxd3
{[%clk 0:02:25.8]} 16. Qe2 {[%clk 0:01:53.8]} 16... Nf4 {[%clk 0:02:24.8]} 17.
Qf3 {[%clk 0:01:51.2]} 17... Qf6 {[%clk 0:02:24]} 18. Kh2 {[%clk 0:01:47.2]}
18... Be6 {[%clk 0:02:15.6]} 19. Bc2 {[%clk 0:01:44.2]} 19... b4 {[%clk
0:02:04.6]} 20. Ra7 {[%clk 0:01:14]} 20... bxc3 {[%clk 0:01:57.7]} 21. Nxc3
{[%clk 0:00:55.1]} 21... Rxb2 {[%clk 0:01:56.2]} 22. Rxc7 {[%clk 0:00:55.1]}
22... Rxc2 {[%clk 0:01:46.8]} 23. Nd5 {[%clk 0:00:54.3]} 23... Nxd5 {[%clk
0:01:30.4]} 24. Rxc2 {[%clk 0:00:42.1]} 24... Qxf3 {[%clk 0:01:12.7]} 25. gxf3
{[%clk 0:00:43]} 25... Nf4 {[%clk 0:01:13.2]} 26. Rd2 {[%clk 0:00:23.9]} 26...
Nxh3 {[%clk 0:01:08.5]} 27. Rxd6 {[%clk 0:00:20.7]} 27... Nf4 {[%clk 0:01:08.4]}
28. Rfd1 {[%clk 0:00:10.7]} 28... g5 {[%clk 0:01:05.5]} 29. Rd8 {[%clk
0:00:05.5]} 29... Rxd8 {[%clk 0:01:06]} 30. Rxd8+ {[%clk 0:00:06.4]} 30... Kg7
{[%clk 0:01:06.1]} 31. Kg3 {[%clk 0:00:06.2]} 31... h5 {[%clk 0:01:05.8]} 32.
Kh2 {[%clk 0:00:06.4]} 32... h4 {[%clk 0:01:05.4]} 33. Rb8 {[%clk 0:00:06.1]}
33... Kf6 {[%clk 0:01:05.2]} 34. Ra8 {[%clk 0:00:05.8]} 34... Ng6 {[%clk
0:01:05.6]} 35. Ra3 {[%clk 0:00:06.1]} 35... Ne5 {[%clk 0:01:04.5]} 36. Kg2
{[%clk 0:00:06.7]} 36... Ng6 {[%clk 0:01:04.3]} 37. Ra5 {[%clk 0:00:06.9]} 37...
Nf4+ {[%clk 0:01:05.2]} 38. Kh2 {[%clk 0:00:07.4]} 38... Bc4 {[%clk 0:00:58.9]}
39. Rc5 {[%clk 0:00:07.3]} 39... Be2 {[%clk 0:00:57.2]} 40. Rf5+ {[%clk
0:00:07.1]} 40... Kg6 {[%clk 0:00:55.5]} 41. Ra5 {[%clk 0:00:03.4]} 41... Bxf3
{[%clk 0:00:53.7]} 42. e5 {[%clk 0:00:03.9]} 42... Bd5 {[%clk 0:00:50.5]} 43.
Ra6+ {[%clk 0:00:03.8]} 43... Be6 {[%clk 0:00:50.9]} 44. Ra5 {[%clk 0:00:03.8]}
44... Kf5 {[%clk 0:00:51.4]} 45. f3 {[%clk 0:00:01.9]} 45... Ng6 {[%clk
0:00:51.8]} 46. Ra4 {[%clk 0:00:01.7]} 46... Nxe5 {[%clk 0:00:51.7]} 47. Kg2
{[%clk 0:00:02.1]} 47... Bd5 {[%clk 0:00:49.6]} 48. Kf2 {[%clk 0:00:02.7]} 48...
Bxf3 {[%clk 0:00:48.5]} 49. Ra5 {[%clk 0:00:02]} 49... f6 {[%clk 0:00:48.7]} 0-1

[Event "Early-Titled-Tuesday-Blitz-February-20-2024"]
[Site "Chess.com"]
[Date "2024.02.20"]
[Round "7"]
[White "AnaKuchava"]
[Black "ProChessWICTH"]
[Result "0-1"]
[WhiteElo "2205"]
[BlackElo "2478"]
[TimeControl "180+1"]
[EndTime "9:19:37 PST"]
[Termination "ProChessWICTH won on time"]

1. d4 {[%clk 0:03:00.9]} 1... Nf6 {[%clk 0:02:55.7]} 2. Nf3 {[%clk 0:02:57.7]}
2... g6 {[%clk 0:02:55.3]} 3. c4 {[%clk 0:02:56.6]} 3... Bg7 {[%clk 0:02:54.9]}
4. Nc3 {[%clk 0:02:55.5]} 4... d5 {[%clk 0:02:55.4]} 5. Bg5 {[%clk 0:02:53.5]}
5... Ne4 {[%clk 0:02:54.7]} 6. Bf4 {[%clk 0:02:52.8]} 6... Nxc3 {[%clk
0:02:53.6]} 7. bxc3 {[%clk 0:02:52.2]} 7... c5 {[%clk 0:02:49.7]} 8. e3 {[%clk
0:02:51.9]} 8... O-O {[%clk 0:02:47.9]} 9. Be2 {[%clk 0:02:49.2]} 9... Nc6
{[%clk 0:02:48]} 10. O-O {[%clk 0:02:48.5]} 10... dxc4 {[%clk 0:02:35.5]} 11.
Bxc4 {[%clk 0:02:47.4]} 11... b6 {[%clk 0:02:33.8]} 12. Qe2 {[%clk 0:02:32.3]}
12... Na5 {[%clk 0:02:15]} 13. Bd3 {[%clk 0:02:29.6]} 13... Bb7 {[%clk
0:02:11.1]} 14. h3 {[%clk 0:02:12.4]} 14... Bxf3 {[%clk 0:01:49.7]} 15. Qxf3
{[%clk 0:02:11.8]} 15... e5 {[%clk 0:01:49.8]} 16. Bg3 {[%clk 0:02:09.4]} 16...
exd4 {[%clk 0:01:48.9]} 17. cxd4 {[%clk 0:02:07.9]} 17... cxd4 {[%clk 0:01:49]}
18. exd4 {[%clk 0:02:08.8]} 18... Qxd4 {[%clk 0:01:46.8]} 19. Rad1 {[%clk
0:02:08.9]} 19... Qa4 {[%clk 0:01:44.5]} 20. Be4 {[%clk 0:01:53.2]} 20... Rad8
{[%clk 0:01:39]} 21. Bd5 {[%clk 0:01:52.8]} 21... Rd7 {[%clk 0:01:24.5]} 22.
Rfe1 {[%clk 0:01:43.5]} 22... b5 {[%clk 0:00:59.4]} 23. Bh4 {[%clk 0:01:01.6]}
23... Nc4 {[%clk 0:00:42.8]} 24. Be7 {[%clk 0:00:57.9]} 24... Ne5 {[%clk
0:00:14.6]} 25. Rxe5 {[%clk 0:00:14.4]} 25... Bxe5 {[%clk 0:00:15.5]} 26. Bxf8
{[%clk 0:00:13.8]} 26... Kxf8 {[%clk 0:00:15.2]} 27. Bb3 {[%clk 0:00:11.6]}
27... Rxd1+ {[%clk 0:00:14.1]} 28. Qxd1 {[%clk 0:00:04.1]} 28... Qd4 {[%clk
0:00:12.8]} 29. Qxd4 {[%clk 0:00:02.4]} 29... Bxd4 {[%clk 0:00:13.7]} 30. Kf1
{[%clk 0:00:02.2]} 30... f6 {[%clk 0:00:14]} 31. Ke2 {[%clk 0:00:02.2]} 31...
Ke7 {[%clk 0:00:14.5]} 32. f3 {[%clk 0:00:01.9]} 32... Kd6 {[%clk 0:00:14.8]}
33. Kd3 {[%clk 0:00:02.3]} 33... Kc5 {[%clk 0:00:15.2]} 34. Bg8 {[%clk
0:00:01.8]} 34... h6 {[%clk 0:00:15.4]} 0-1

[Event "Early-Titled-Tuesday-Blitz-February-20-2024"]
[Site "Chess.com"]
[Date "2024.02.20"]
[Round "7"]
[White "jaskol95"]
[Black "N_Mullodzhanov"]
[Result "1-0"]
[WhiteElo "2586"]
[BlackElo "2476"]
[TimeControl "180+1"]
[EndTime "9:19:38 PST"]
[Termination "jaskol95 won by checkmate"]

1. e4 {[%clk 0:03:00.9]} 1... c6 {[%clk 0:03:00]} 2. d4 {[%clk 0:02:55.3]} 2...
d5 {[%clk 0:03:00]} 3. e5 {[%clk 0:02:56]} 3... Bf5 {[%clk 0:02:59.5]} 4. Nd2
{[%clk 0:02:56.6]} 4... e6 {[%clk 0:02:59.7]} 5. Nb3 {[%clk 0:02:56.7]} 5... a6
{[%clk 0:02:59.2]} 6. Nf3 {[%clk 0:02:53.9]} 6... c5 {[%clk 0:02:59.4]} 7. dxc5
{[%clk 0:02:53.5]} 7... Bxc5 {[%clk 0:03:00.3]} 8. Nxc5 {[%clk 0:02:54.1]} 8...
Qa5+ {[%clk 0:03:00.3]} 9. c3 {[%clk 0:02:54.7]} 9... Qxc5 {[%clk 0:03:00.3]}
10. Be3 {[%clk 0:02:55.3]} 10... Qc7 {[%clk 0:03:00.4]} 11. Be2 {[%clk
0:02:38.1]} 11... Ne7 {[%clk 0:03:00.2]} 12. Bf4 {[%clk 0:02:02.2]} 12... Nd7
{[%clk 0:02:47.4]} 13. Bg3 {[%clk 0:01:52.6]} 13... Nc6 {[%clk 0:02:37.7]} 14.
Nh4 {[%clk 0:01:40.9]} 14... Be4 {[%clk 0:02:30]} 15. f3 {[%clk 0:01:40.1]}
15... Bg6 {[%clk 0:02:30]} 16. Nxg6 {[%clk 0:01:40.4]} 16... hxg6 {[%clk
0:02:30.9]} 17. f4 {[%clk 0:01:39.7]} 17... O-O-O {[%clk 0:02:20.2]} 18. O-O
{[%clk 0:01:32.2]} 18... Ne7 {[%clk 0:02:16.3]} 19. Bf2 {[%clk 0:01:22.5]} 19...
Nf5 {[%clk 0:02:13.6]} 20. c4 {[%clk 0:01:19]} 20... dxc4 {[%clk 0:02:09.3]} 21.
Rc1 {[%clk 0:01:09.8]} 21... Nxe5 {[%clk 0:02:06.5]} 22. Qa4 {[%clk 0:01:02.4]}
22... Nc6 {[%clk 0:01:58.2]} 23. Rxc4 {[%clk 0:00:58]} 23... Kb8 {[%clk
0:01:52.3]} 24. Bf3 {[%clk 0:00:40.9]} 24... Nfe7 {[%clk 0:01:22]} 25. Rcc1
{[%clk 0:00:20.5]} 25... g5 {[%clk 0:01:16.5]} 26. b4 {[%clk 0:00:19.9]} 26...
Qxf4 {[%clk 0:01:12.7]} 27. Bg3 {[%clk 0:00:19.7]} 27... Rd4 {[%clk 0:01:07]}
28. Bxf4+ {[%clk 0:00:19.9]} 28... gxf4 {[%clk 0:01:01.3]} 29. Bxc6 {[%clk
0:00:19.1]} 29... Nxc6 {[%clk 0:01:01.8]} 30. Rxc6 {[%clk 0:00:19.5]} 30... bxc6
{[%clk 0:01:02.2]} 31. Qxc6 {[%clk 0:00:20.4]} 31... Rd5 {[%clk 0:00:50.9]} 32.
Qb6+ {[%clk 0:00:20.1]} 32... Ka8 {[%clk 0:00:50.7]} 33. Qxa6+ {[%clk
0:00:20.5]} 33... Kb8 {[%clk 0:00:50.9]} 34. Qb6+ {[%clk 0:00:20.6]} 34... Ka8
{[%clk 0:00:51.3]} 35. Rf3 {[%clk 0:00:18.1]} 35... Rd1+ {[%clk 0:00:46.2]} 36.
Kf2 {[%clk 0:00:18.2]} 36... Rd2+ {[%clk 0:00:46.1]} 37. Ke1 {[%clk 0:00:18.8]}
37... Rxa2 {[%clk 0:00:46]} 38. Rd3 {[%clk 0:00:14.8]} 38... Rc8 {[%clk
0:00:45.5]} 39. Rd8 {[%clk 0:00:13.5]} 39... Ra1+ {[%clk 0:00:43.2]} 40. Kf2
{[%clk 0:00:13.3]} 40... Ra2+ {[%clk 0:00:43.5]} 41. Kf3 {[%clk 0:00:13.9]}
41... Rxd8 {[%clk 0:00:40.2]} 42. Qxd8+ {[%clk 0:00:14.8]} 42... Kb7 {[%clk
0:00:40.7]} 43. Qd7+ {[%clk 0:00:15.1]} 43... Kb6 {[%clk 0:00:41]} 44. Qxf7
{[%clk 0:00:15.5]} 44... Ra3+ {[%clk 0:00:39]} 45. Kxf4 {[%clk 0:00:15.5]} 45...
Ra4 {[%clk 0:00:39.7]} 46. Qxe6+ {[%clk 0:00:15.7]} 46... Kb5 {[%clk 0:00:40.3]}
47. Qd7+ {[%clk 0:00:15.2]} 47... Kxb4 {[%clk 0:00:40.3]} 48. Qxa4+ {[%clk
0:00:15.9]} 48... Kxa4 {[%clk 0:00:40.6]} 49. Kg5 {[%clk 0:00:16.7]} 49... Kb5
{[%clk 0:00:41.5]} 50. Kg6 {[%clk 0:00:17.6]} 50... Kc5 {[%clk 0:00:42.4]} 51.
Kxg7 {[%clk 0:00:18.5]} 51... Kd5 {[%clk 0:00:43.3]} 52. h4 {[%clk 0:00:19]}
52... Ke5 {[%clk 0:00:44.2]} 53. h5 {[%clk 0:00:19.7]} 53... Kf5 {[%clk
0:00:45]} 54. h6 {[%clk 0:00:20.6]} 54... Kg4 {[%clk 0:00:45.9]} 55. h7 {[%clk
0:00:21.5]} 55... Kg3 {[%clk 0:00:46.8]} 56. h8=Q {[%clk 0:00:22.4]} 56... Kxg2
{[%clk 0:00:47.7]} 57. Qh4 {[%clk 0:00:22.9]} 57... Kf3 {[%clk 0:00:48]} 58. Kf6
{[%clk 0:00:23.5]} 58... Kg2 {[%clk 0:00:48.9]} 59. Qf4 {[%clk 0:00:23.5]} 59...
Kg1 {[%clk 0:00:49.8]} 60. Qd2 {[%clk 0:00:23.6]} 60... Kf1 {[%clk 0:00:49.8]}
61. Kf5 {[%clk 0:00:24.5]} 61... Kg1 {[%clk 0:00:50.7]} 62. Kf4 {[%clk
0:00:25.4]} 62... Kf1 {[%clk 0:00:51.6]} 63. Kg3 {[%clk 0:00:26.3]} 63... Kg1
{[%clk 0:00:52.5]} 64. Qg2# {[%clk 0:00:26.6]} 1-0

[Event "Early-Titled-Tuesday-Blitz-February-20-2024"]
[Site "Chess.com"]
[Date "2024.02.20"]
[Round "7"]
[White "alpope"]
[Black "Mikhail_Golubev"]
[Result "1-0"]
[WhiteElo "2518"]
[BlackElo "2634"]
[TimeControl "180+1"]
[EndTime "9:19:39 PST"]
[Termination "alpope won by checkmate"]

1. Nf3 {[%clk 0:02:50.1]} 1... d6 {[%clk 0:02:59.6]} 2. g3 {[%clk 0:02:48.8]}
2... g6 {[%clk 0:02:59.2]} 3. Bg2 {[%clk 0:02:48.6]} 3... Bg7 {[%clk 0:02:59.7]}
4. O-O {[%clk 0:02:49]} 4... e5 {[%clk 0:02:59.9]} 5. c4 {[%clk 0:02:48.8]} 5...
Nc6 {[%clk 0:02:59.9]} 6. Nc3 {[%clk 0:02:48.7]} 6... f5 {[%clk 0:03:00.1]} 7.
Rb1 {[%clk 0:02:48]} 7... a5 {[%clk 0:02:48.8]} 8. a3 {[%clk 0:02:48]} 8... Nf6
{[%clk 0:02:48.5]} 9. b4 {[%clk 0:02:48.1]} 9... axb4 {[%clk 0:02:47.5]} 10.
axb4 {[%clk 0:02:49]} 10... e4 {[%clk 0:02:38.9]} 11. Ne1 {[%clk 0:02:42.2]}
11... O-O {[%clk 0:02:38.8]} 12. d3 {[%clk 0:02:40.6]} 12... Be6 {[%clk
0:02:31.4]} 13. Nc2 {[%clk 0:02:35.9]} 13... exd3 {[%clk 0:02:22.3]} 14. exd3
{[%clk 0:02:35.5]} 14... d5 {[%clk 0:02:15.6]} 15. Re1 {[%clk 0:02:30.4]} 15...
Bf7 {[%clk 0:02:10.3]} 16. b5 {[%clk 0:01:52.7]} 16... Na5 {[%clk 0:01:48.2]}
17. Ba3 {[%clk 0:01:46.1]} 17... dxc4 {[%clk 0:01:34.1]} 18. Bxf8 {[%clk
0:01:46.2]} 18... Qxf8 {[%clk 0:01:26.5]} 19. dxc4 {[%clk 0:01:41]} 19... Rd8
{[%clk 0:01:17]} 20. Nd5 {[%clk 0:01:31.5]} 20... Nxc4 {[%clk 0:01:12.6]} 21.
Nxf6+ {[%clk 0:01:30.4]} 21... Bxf6 {[%clk 0:01:12.9]} 22. Qc1 {[%clk
0:01:24.1]} 22... Qc5 {[%clk 0:00:52]} 23. Ne3 {[%clk 0:01:18.1]} 23... Bd4
{[%clk 0:00:35.1]} 24. Kh1 {[%clk 0:01:18.2]} 24... Bxe3 {[%clk 0:00:31.8]} 25.
fxe3 {[%clk 0:01:16.9]} 25... Bd5 {[%clk 0:00:24.7]} 26. e4 {[%clk 0:01:13.6]}
26... fxe4 {[%clk 0:00:23]} 27. Bxe4 {[%clk 0:01:09.9]} 27... Bxe4+ {[%clk
0:00:22.9]} 28. Rxe4 {[%clk 0:01:10.4]} 28... Rd4 {[%clk 0:00:16.1]} 29. Re8+
{[%clk 0:00:45.5]} 29... Kf7 {[%clk 0:00:14.1]} 30. Qe1 {[%clk 0:00:45.2]} 30...
Qd5+ {[%clk 0:00:13.9]} 31. Kg1 {[%clk 0:00:45.6]} 31... Qd7 {[%clk 0:00:09.9]}
32. Re2 {[%clk 0:00:42.4]} 32... Nd2 {[%clk 0:00:06.7]} 33. Rf2+ {[%clk
0:00:40.6]} 33... Kg7 {[%clk 0:00:05.8]} 34. Rc1 {[%clk 0:00:24.6]} 34... Qd5
{[%clk 0:00:05.2]} 35. Rxc7+ {[%clk 0:00:22.5]} 35... Kh6 {[%clk 0:00:03.7]} 36.
Qe3+ {[%clk 0:00:22.7]} 36... g5 {[%clk 0:00:03.4]} 37. Rf6+ {[%clk 0:00:20]}
37... Kh5 {[%clk 0:00:03.6]} 38. Rxh7+ {[%clk 0:00:20.7]} 38... Kg4 {[%clk
0:00:03.9]} 39. h3# {[%clk 0:00:21.4]} 1-0

[Event "Early-Titled-Tuesday-Blitz-February-20-2024"]
[Site "Chess.com"]
[Date "2024.02.20"]
[Round "7"]
[White "Schattman"]
[Black "Young_Catalan_Player09"]
[Result "0-1"]
[WhiteElo "2436"]
[BlackElo "2568"]
[TimeControl "180+1"]
[EndTime "9:19:39 PST"]
[Termination "Young_Catalan_Player09 won on time"]

1. f4 {[%clk 0:03:00.9]} 1... e5 {[%clk 0:02:55.5]} 2. fxe5 {[%clk 0:03:01.8]}
2... d6 {[%clk 0:02:55.6]} 3. exd6 {[%clk 0:03:02.7]} 3... Bxd6 {[%clk
0:02:55.9]} 4. Nf3 {[%clk 0:03:03.3]} 4... g5 {[%clk 0:02:55.7]} 5. g3 {[%clk
0:03:03.9]} 5... h5 {[%clk 0:02:48.4]} 6. d4 {[%clk 0:03:02.9]} 6... f6 {[%clk
0:02:32]} 7. Nc3 {[%clk 0:02:55.2]} 7... h4 {[%clk 0:02:30.4]} 8. gxh4 {[%clk
0:02:54.2]} 8... g4 {[%clk 0:02:30.1]} 9. Ng5 {[%clk 0:02:31.6]} 9... fxg5
{[%clk 0:02:26]} 10. Bxg5 {[%clk 0:02:32.5]} 10... Be7 {[%clk 0:02:25.7]} 11.
Qd2 {[%clk 0:02:33]} 11... Nc6 {[%clk 0:02:15.5]} 12. O-O-O {[%clk 0:02:32.3]}
12... Bxg5 {[%clk 0:02:01.2]} 13. hxg5 {[%clk 0:02:31.8]} 13... Rh5 {[%clk
0:02:00.5]} 14. g6 {[%clk 0:02:24.8]} 14... Qg5 {[%clk 0:01:58.2]} 15. e3 {[%clk
0:02:25.2]} 15... Bf5 {[%clk 0:01:53.7]} 16. Bg2 {[%clk 0:02:15.6]} 16... Nge7
{[%clk 0:01:45.1]} 17. d5 {[%clk 0:02:15.2]} 17... O-O-O {[%clk 0:01:38.9]} 18.
Qf2 {[%clk 0:01:45.5]} 18... Ne5 {[%clk 0:01:34.5]} 19. Kb1 {[%clk 0:01:45.5]}
19... Qxg6 {[%clk 0:01:29.5]} 20. e4 {[%clk 0:01:43.1]} 20... Bd7 {[%clk
0:01:28]} 21. Qxa7 {[%clk 0:01:41.7]} 21... Qa6 {[%clk 0:01:22.1]} 22. Qd4
{[%clk 0:01:36.3]} 22... N7g6 {[%clk 0:01:19]} 23. Bf1 {[%clk 0:01:30.3]} 23...
Qa5 {[%clk 0:01:12.2]} 24. b4 {[%clk 0:01:27]} 24... Qb6 {[%clk 0:01:10.9]} 25.
Qxb6 {[%clk 0:01:25.3]} 25... cxb6 {[%clk 0:01:11.8]} 26. Bb5 {[%clk 0:01:09.5]}
26... Rdh8 {[%clk 0:01:09.9]} 27. Rhf1 {[%clk 0:00:50.1]} 27... Rxh2 {[%clk
0:01:04.9]} 28. Bxd7+ {[%clk 0:00:47.5]} 28... Kxd7 {[%clk 0:01:05]} 29. Rf6
{[%clk 0:00:47.1]} 29... g3 {[%clk 0:01:02.6]} 30. Kc1 {[%clk 0:00:39.7]} 30...
Rh1 {[%clk 0:00:52.7]} 31. Rxb6 {[%clk 0:00:35.8]} 31... g2 {[%clk 0:00:44.6]}
32. Ne2 {[%clk 0:00:34.7]} 32... Nf4 {[%clk 0:00:41.3]} 33. Ng1 {[%clk
0:00:24.8]} 33... Rxg1 {[%clk 0:00:39.1]} 34. Rxg1 {[%clk 0:00:25.7]} 34... Ne2+
{[%clk 0:00:39.4]} 35. Kb2 {[%clk 0:00:20.1]} 35... Nxg1 {[%clk 0:00:40.1]} 36.
Rxb7+ {[%clk 0:00:20]} 36... Kc8 {[%clk 0:00:35.5]} 37. Rg7 {[%clk 0:00:19.5]}
37... Rh2 {[%clk 0:00:34.8]} 38. d6 {[%clk 0:00:17]} 38... Ngf3 {[%clk 0:00:34]}
39. d7+ {[%clk 0:00:17.1]} 39... Nxd7 {[%clk 0:00:32.8]} 40. e5 {[%clk
0:00:17.6]} 40... g1=Q {[%clk 0:00:31.3]} 41. Rxg1 {[%clk 0:00:17.7]} 41... Nxg1
{[%clk 0:00:32.2]} 0-1

[Event "Early-Titled-Tuesday-Blitz-February-20-2024"]
[Site "Chess.com"]
[Date "2024.02.20"]
[Round "7"]
[White "WilsonPalencia21"]
[Black "inagreV"]
[Result "0-1"]
[WhiteElo "2526"]
[BlackElo "2392"]
[TimeControl "180+1"]
[EndTime "9:19:39 PST"]
[Termination "inagreV won by checkmate"]

1. d4 {[%clk 0:03:00.9]} 1... Nf6 {[%clk 0:02:18.7]} 2. c4 {[%clk 0:02:55.6]}
2... g6 {[%clk 0:02:17.9]} 3. Nf3 {[%clk 0:02:54.3]} 3... Bg7 {[%clk 0:02:17.7]}
4. Nc3 {[%clk 0:02:51.9]} 4... O-O {[%clk 0:02:18]} 5. e4 {[%clk 0:02:52]} 5...
d6 {[%clk 0:02:18.5]} 6. Be2 {[%clk 0:02:52.1]} 6... e5 {[%clk 0:02:18.6]} 7.
O-O {[%clk 0:02:52.2]} 7... Bg4 {[%clk 0:02:18.7]} 8. d5 {[%clk 0:02:50.6]} 8...
a5 {[%clk 0:02:18.5]} 9. Ne1 {[%clk 0:02:50.2]} 9... Bd7 {[%clk 0:02:17.9]} 10.
Nd3 {[%clk 0:02:48.6]} 10... Na6 {[%clk 0:02:18.5]} 11. Be3 {[%clk 0:02:49]}
11... b6 {[%clk 0:02:18.5]} 12. a3 {[%clk 0:02:49.4]} 12... a4 {[%clk
0:02:11.2]} 13. Bg5 {[%clk 0:02:21.6]} 13... Nc5 {[%clk 0:01:52.4]} 14. Nxc5
{[%clk 0:01:59.8]} 14... bxc5 {[%clk 0:01:53.3]} 15. Bd3 {[%clk 0:01:59.6]}
15... h6 {[%clk 0:01:50.3]} 16. Bd2 {[%clk 0:01:55.7]} 16... Nh5 {[%clk
0:01:37.5]} 17. g3 {[%clk 0:01:53.9]} 17... Bh3 {[%clk 0:01:36]} 18. Re1 {[%clk
0:01:53.7]} 18... Qd7 {[%clk 0:01:36]} 19. Bc2 {[%clk 0:01:53.1]} 19... f5
{[%clk 0:01:14.7]} 20. Bxa4 {[%clk 0:01:46.2]} 20... Qf7 {[%clk 0:01:13.6]} 21.
Bc2 {[%clk 0:01:37.7]} 21... f4 {[%clk 0:00:58.1]} 22. Qe2 {[%clk 0:01:04.4]}
22... f3 {[%clk 0:00:34.9]} 23. Qd1 {[%clk 0:00:56.4]} 23... Bg2 {[%clk
0:00:27]} 24. Bd3 {[%clk 0:00:51.6]} 24... Qd7 {[%clk 0:00:26]} 25. Bf1 {[%clk
0:00:37.9]} 25... Qh3 {[%clk 0:00:25]} 26. Re3 {[%clk 0:00:37.7]} 26... Nf6
{[%clk 0:00:20.2]} 27. Rxf3 {[%clk 0:00:35.5]} 27... Ng4 {[%clk 0:00:20.3]} 28.
Bxg2 {[%clk 0:00:27.9]} 28... Qxh2+ {[%clk 0:00:19.2]} 29. Kf1 {[%clk
0:00:28.5]} 29... Rxf3 {[%clk 0:00:12.2]} 30. Qxf3 {[%clk 0:00:26.1]} 30... h5
{[%clk 0:00:12.2]} 31. Be1 {[%clk 0:00:04.9]} 31... Rf8 {[%clk 0:00:12.5]} 32.
Qd3 {[%clk 0:00:02.9]} 32... h4 {[%clk 0:00:08.8]} 33. Bf3 {[%clk 0:00:03.4]}
33... hxg3 {[%clk 0:00:06.4]} 34. Bxg4 {[%clk 0:00:03.4]} 34... Rxf2+ {[%clk
0:00:06.7]} 35. Bxf2 {[%clk 0:00:03.5]} 35... Qxf2# {[%clk 0:00:07.6]} 0-1